fUSD/lending_fUSD_20260529
["ID","MTS","AMOUNT","RATE_DAILY","PERIOD"]
[423284950,1780026644000,-500.0,0.00021384,2]
[423284942,1780026644000,-300.0,0.00021378,2]
[423284941,1780026644000,-801.85129954,0.00021357,2]
[423284905,1780026644000,-152.0,0.00021137,2]
[423284915,1780026644000,-500.0,0.00021137,2]
[423284909,1780026644000,-152.0,0.00021137,2]
[423284907,1780026644000,-151.0,0.00021137,2]
[423284904,1780026644000,-151.0,0.00021137,2]
[423284906,1780026644000,-296.7282131,0.00021137,2]
[423284910,1780026644000,-307.70715698,0.00021137,2]
[423284913,1780026644000,-319.09232179,0.00021137,2]
[423284916,1780026644000,-151.0,0.00021137,2]
[423284908,1780026644000,-200.0,0.00021137,2]
[423284912,1780026644000,-151.0,0.00021137,2]
[423284914,1780026644000,-152.0,0.00021137,2]
[423284911,1780026644000,-500.0,0.00021137,2]
[423284918,1780026644000,-500.0,0.00021137,2]
[423284901,1780026644000,-500.0,0.00021137,2]
[423284925,1780026644000,-500.0,0.00021137,2]
[423284928,1780026644000,-151.0,0.00021192,2]
[423284917,1780026644000,-152.0,0.00021137,2]
[423284923,1780026644000,-151.0,0.00021137,2]
[423284921,1780026644000,-151.0,0.00021137,2]
[423284920,1780026644000,-152.0,0.00021137,2]
[423284926,1780026644000,-500.0,0.00021137,2]
[423284919,1780026644000,-151.0,0.00021137,2]
[423284922,1780026644000,-500.0,0.00021137,2]
[423284929,1780026644000,-719.04747942,0.00021192,2]
[423284924,1780026644000,-152.0,0.00021137,2]
[423284927,1780026644000,-152.0,0.00021137,2]
[423284930,1780026644000,-719.04747942,0.00021192,2]
[423284931,1780026644000,-151.0,0.00021247,2]
[423285009,1780026645000,-166.0,0.00021918,2]
[423285006,1780026645000,-166.0,0.00021918,2]
[423284998,1780026645000,-427.71,0.00021726,2]
[423285005,1780026645000,-166.0,0.00021918,2]
[423285004,1780026645000,-166.0,0.00021918,2]
[423284999,1780026645000,-10488.45,0.00021781,2]
[423285008,1780026645000,-166.0,0.00021918,2]
[423285001,1780026645000,-261.64052426,0.0002185,10]
[423285003,1780026645000,-1006.5,0.00021918,2]
[423285010,1780026645000,-166.0,0.00021918,2]
[423285000,1780026645000,-152.0,0.00021836,6]
[423285007,1780026645000,-1115.48,0.00021918,2]
[423285012,1780026645000,-172.0,0.00021918,2]
[423285002,1780026645000,-5000.0,0.00021918,2]
[423285011,1780026645000,-166.0,0.00021918,2]
[423285019,1780026645000,-2001.21,0.00021999,10]
[423285018,1780026645000,-1425.0,0.00021983,2]
[423285023,1780026645000,-450.0,0.00022,2]
[423285013,1780026645000,-166.0,0.00021918,2]
[423285016,1780026645000,-448.24,0.00021931,7]
[423285014,1780026645000,-376.08446197,0.00021918,2]
[423285021,1780026645000,-300.0,0.00021999,2]
[423285015,1780026645000,-150.0,0.00021918,2]
[423285017,1780026645000,-427.74732886,0.00021935,2]
[423285020,1780026645000,-694.38,0.00021999,10]
[423285024,1780026645000,-3978.0,0.00022,2]
[423285025,1780026645000,-3624.0,0.00022,2]
[423285035,1780026645000,-727.0,0.00022,2]
[423285036,1780026645000,-163.0,0.00022,2]
[423285022,1780026645000,-300.0,0.00021999,2]
[423284997,1780026645000,-200.0,0.000217,2]
[423284966,1780026645000,-750.0,0.00021486,7]
[423284988,1780026645000,-200.0,0.00021685,2]
[423285026,1780026645000,-1004.67,0.00022,2]
[423284967,1780026645000,-427.71,0.00021517,2]
[423284968,1780026645000,-151.0,0.00021522,2]
[423284965,1780026645000,-1800.0,0.00021486,2]
[423284969,1780026645000,-894.19061325,0.00021522,2]
[423284972,1780026645000,-150.0,0.00021589,2]
[423284971,1780026645000,-927.27566594,0.00021577,2]
[423284975,1780026645000,-150.0,0.00021589,2]
[423284974,1780026645000,-150.0,0.00021589,2]
[423284976,1780026645000,-150.0,0.00021589,2]
[423284977,1780026645000,-150.0,0.00021589,2]
[423284973,1780026645000,-150.0,0.00021589,2]
[423284980,1780026645000,-453.99649548,0.00021685,2]
[423284978,1780026645000,-151.0,0.00021632,2]
[423284991,1780026645000,-200.0,0.00021685,2]
[423284970,1780026645000,-151.0,0.00021577,2]
[423284981,1780026645000,-200.0,0.00021685,2]
[423284979,1780026645000,-961.58486558,0.00021632,2]
[423284984,1780026645000,-771.01748644,0.00021685,2]
[423284995,1780026645000,-151.0,0.00021687,2]
[423284996,1780026645000,-997.16350561,0.00021687,2]
[423284983,1780026645000,-181.08010149,0.00021685,2]
[423284985,1780026645000,-217.15233878,0.00021685,2]
[423284994,1780026645000,-217.15233878,0.00021685,2]
[423284986,1780026645000,-151.0,0.00021685,2]
[423284987,1780026645000,-719.04747942,0.00021685,2]
[423284993,1780026645000,-217.15233878,0.00021685,2]
[423284990,1780026645000,-2157.14243826,0.00021685,2]
[423284989,1780026645000,-1481.2378076,0.00021685,2]
[423284992,1780026645000,-217.15233878,0.00021685,2]
[423284982,1780026645000,-290.26104002,0.00021685,2]
[423285031,1780026645000,-215.5484138,0.00022,7]
[423285028,1780026645000,-1131.0,0.00022,2]
[423285030,1780026645000,-1371.0,0.00022,2]
[423285064,1780026645000,-600.0,0.00022247,7]
[423285076,1780026645000,-448.24,0.0002246,7]
[423285067,1780026645000,-346.99,0.000223,14]
[423285068,1780026645000,-448.24,0.00022328,7]
[423285074,1780026645000,-195.24744043,0.00022407,2]
[423285075,1780026645000,-152.0,0.00022412,7]
[423285066,1780026645000,-1071.12,0.00022298,2]
[423285070,1780026645000,-534.02035546,0.00022392,2]
[423285071,1780026645000,-218.18,0.000224,3]
[423285072,1780026645000,-2939.18,0.000224,7]
[423285069,1780026645000,-8056.7,0.00022353,2]
[423285078,1780026645000,-282.98,0.00022466,2]
[423285077,1780026645000,-319.52,0.00022466,2]
[423285079,1780026645000,-933.75,0.00022466,2]
[423285065,1780026645000,-500.0,0.00022271,14]
[423285081,1780026645000,-10262.14423114,0.000225,2]
[423285080,1780026645000,-1135.48572343,0.000225,2]
[423285088,1780026645000,-491.93397173,0.00022603,2]
[423285085,1780026645000,-568.53506614,0.00022562,2]
[423285082,1780026645000,-180.15560403,0.00022506,2]
[423285084,1780026645000,-217.15233878,0.00022506,2]
[423285089,1780026645000,-2718.34488606,0.00022658,30]
[423285087,1780026645000,-168.09,0.00022603,2]
[423285091,1780026645000,-2718.34488606,0.0002274,30]
[423285093,1780026645000,-312.13772435,0.00022781,2]
[423285090,1780026645000,-500.0,0.00022706,2]
[423285092,1780026645000,-218.97758758,0.00022781,2]
[423285094,1780026645000,-194.72792766,0.00022781,2]
[423285096,1780026645000,-233.5188934,0.00022781,2]
[423285095,1780026645000,-829.12830338,0.00022781,2]
[423285086,1780026645000,-4344.59,0.000226,7]
[423285073,1780026645000,-195.24744043,0.00022407,2]
[423285097,1780026645000,-151.0,0.00022781,2]
[423285056,1780026645000,-200.0,0.00022233,2]
[423285033,1780026645000,-5630.0,0.00022,2]
[423285027,1780026645000,-1198.0,0.00022,2]
[423285029,1780026645000,-3749.0,0.00022,2]
[423285032,1780026645000,-1220.0,0.00022,2]
[423285034,1780026645000,-2729.0,0.00022,2]
[423285048,1780026645000,-320.75,0.000222,3]
[423285049,1780026645000,-200.0,0.00022233,2]
[423285038,1780026645000,-2007.0,0.00022,2]
[423285060,1780026645000,-225.18697532,0.00022233,2]
[423285037,1780026645000,-1566.0,0.00022,2]
[423285040,1780026645000,-500.0,0.00022044,2]
[423285042,1780026645000,-448.24,0.00022063,7]
[423285047,1780026645000,-404.18,0.000222,3]
[423285044,1780026645000,-965.12,0.00022175,2]
[423285041,1780026645000,-331.78092459,0.00022045,2]
[423285039,1780026645000,-200.0,0.00022011,2]
[423285043,1780026645000,-711.47953175,0.00022067,2]
[423285058,1780026645000,-2236.95670847,0.00022233,2]
[423285045,1780026645000,-448.24,0.00022196,7]
[423285063,1780026645000,-1800.0,0.00022247,2]
[423285051,1780026645000,-187.78006524,0.00022233,2]
[423285061,1780026645000,-225.18697532,0.00022233,2]
[423285053,1780026645000,-225.18697532,0.00022233,2]
[423285062,1780026645000,-225.18697532,0.00022233,2]
[423285055,1780026645000,-745.65223615,0.00022233,2]
[423285054,1780026645000,-151.0,0.00022233,2]
[423285057,1780026645000,-1536.04360648,0.00022233,2]
[423285052,1780026645000,-799.54513344,0.00022233,2]
[423285050,1780026645000,-301.0006985,0.00022233,2]
[423285046,1780026645000,-308.24,0.000222,2]
[423285059,1780026645000,-200.0,0.00022233,2]
[423285134,1780026646000,-215.5484138,0.00023,30]
[423285151,1780026646000,-500.0,0.00023288,7]
[423285152,1780026646000,-201.93286098,0.00023329,2]
[423285141,1780026646000,-1566.0,0.00023,2]
[423285136,1780026646000,-5630.0,0.00023,2]
[423285130,1780026646000,-1198.0,0.00023,2]
[423285135,1780026646000,-1220.0,0.00023,2]
[423285138,1780026646000,-727.0,0.00023,2]
[423285139,1780026646000,-150.0,0.00023,2]
[423285132,1780026646000,-3749.0,0.00023,2]
[423285133,1780026646000,-1371.0,0.00023,2]
[423285137,1780026646000,-2729.0,0.00023,2]
[423285149,1780026646000,-150.0,0.00023288,2]
[423285157,1780026646000,-275.92646079,0.00023329,2]
[423285150,1780026646000,-150.0,0.00023288,2]
[423285143,1780026646000,-2718.34488606,0.00023014,30]
[423285146,1780026646000,-181.79498314,0.0002314,2]
[423285145,1780026646000,-2718.34488606,0.00023096,30]
[423285142,1780026646000,-2007.0,0.00023,2]
[423285148,1780026646000,-2718.34488606,0.00023288,30]
[423285144,1780026646000,-163.0,0.00023014,7]
[423285147,1780026646000,-2718.34488606,0.00023205,30]
[423285155,1780026646000,-242.15909246,0.00023329,2]
[423285154,1780026646000,-859.8060506,0.00023329,2]
[423285153,1780026646000,-323.68682015,0.00023329,2]
[423285158,1780026646000,-200.0,0.00023329,2]
[423285162,1780026646000,-242.15909246,0.00023329,2]
[423285129,1780026646000,-3624.0,0.00023,2]
[423285140,1780026646000,-151.72204684,0.00023,2]
[423285131,1780026646000,-1131.0,0.00023,2]
[423285109,1780026646000,-189.61897912,0.0002288,2]
[423285122,1780026646000,-150.0,0.00023,2]
[423285161,1780026646000,-200.0,0.00023329,2]
[423285102,1780026646000,-200.0,0.00022781,2]
[423285101,1780026646000,-2319.72410669,0.00022781,2]
[423285103,1780026646000,-233.5188934,0.00022781,2]
[423285100,1780026646000,-1592.87721992,0.00022781,2]
[423285098,1780026646000,-773.24136889,0.00022781,2]
[423285099,1780026646000,-200.0,0.00022781,2]
[423285106,1780026646000,-200.0,0.00022802,2]
[423285111,1780026646000,-2718.34488606,0.00022932,30]
[423285105,1780026646000,-233.5188934,0.00022781,2]
[423285108,1780026646000,-163.35006071,0.00022858,2]
[423285113,1780026646000,-152.0,0.00022989,8]
[423285115,1780026646000,-248.57307992,0.00022999,2]
[423285104,1780026646000,-233.5188934,0.00022781,2]
[423285110,1780026646000,-233.06,0.000229,14]
[423285107,1780026646000,-2718.34488606,0.00022822,30]
[423285112,1780026646000,-2796.56,0.00022955,5]
[423285114,1780026646000,-300.0,0.00022999,2]
[423285117,1780026646000,-150.0,0.00023,2]
[423285127,1780026646000,-2016.19864401,0.00023,2]
[423285119,1780026646000,-150.0,0.00023,2]
[423285124,1780026646000,-175.2393,0.00023,2]
[423285123,1780026646000,-150.0,0.00023,2]
[423285121,1780026646000,-2000.0,0.00023,20]
[423285125,1780026646000,-150.0,0.00023,2]
[423285118,1780026646000,-354.51006341,0.00023,2]
[423285128,1780026646000,-3978.0,0.00023,2]
[423285126,1780026646000,-150.0,0.00023,2]
[423285116,1780026646000,-150.0,0.00023,2]
[423285120,1780026646000,-150.0,0.00023,2]
[423285159,1780026646000,-1651.81367706,0.00023329,2]
[423285176,1780026646000,-200.0,0.000237,2]
[423285156,1780026646000,-151.0,0.00023329,2]
[423285206,1780026646000,-209.09056759,0.00024,7]
[423285208,1780026646000,-1039.02378003,0.00024,2]
[423285197,1780026646000,-251.11897888,0.00023877,2]
[423285199,1780026646000,-226.34422994,0.00023989,2]
[423285202,1780026646000,-288.65331644,0.00023998,2]
[423285205,1780026646000,-300.0,0.00023999,2]
[423285203,1780026646000,-204.29093716,0.00023998,2]
[423285200,1780026646000,-256.90640322,0.00023989,2]
[423285195,1780026646000,-280.17462272,0.00023877,2]
[423285201,1780026646000,-703.55,0.00023989,2]
[423285204,1780026646000,-154.82566893,0.00023998,2]
[423285209,1780026646000,-1256.3545371,0.00024,2]
[423285221,1780026646000,-1566.0,0.00024,2]
[423285213,1780026646000,-1198.0,0.00024,2]
[423285211,1780026646000,-3978.0,0.00024,2]
[423285212,1780026646000,-3624.0,0.00024,2]
[423285219,1780026646000,-2729.0,0.00024,2]
[423285214,1780026646000,-1131.0,0.00024,2]
[423285220,1780026646000,-727.0,0.00024,2]
[423285218,1780026646000,-5630.0,0.00024,2]
[423285216,1780026646000,-1371.0,0.00024,2]
[423285217,1780026646000,-1220.0,0.00024,2]
[423285215,1780026646000,-3749.0,0.00024,2]
[423285223,1780026646000,-487.0,0.00024,5]
[423285222,1780026646000,-2007.0,0.00024,2]
[423285224,1780026646000,-203.46878699,0.00024034,2]
[423285225,1780026646000,-500.0,0.00024088,2]
[423285227,1780026646000,-279.58,0.0002411,2]
[423285164,1780026646000,-242.15909246,0.00023329,2]
[423285207,1780026646000,-195.50006493,0.00024,2]
[423285198,1780026646000,-2657.95098133,0.00023973,2]
[423285210,1780026646000,-500.0,0.00024,2]
[423285189,1780026646000,-251.11897888,0.00023877,2]
[423285160,1780026646000,-2405.55389863,0.00023329,2]
[423285196,1780026646000,-251.11897888,0.00023877,2]
[423285165,1780026646000,-2718.34488606,0.0002337,30]
[423285163,1780026646000,-242.15909246,0.00023329,2]
[423285175,1780026646000,-2939.18,0.000237,7]
[423285226,1780026646000,-261.88835372,0.00024109,2]
[423285177,1780026646000,-703.55,0.00023748,2]
[423285167,1780026646000,-500.0,0.00023431,2]
[423285179,1780026646000,-200.22970845,0.00023868,2]
[423285168,1780026646000,-2718.34488606,0.00023479,30]
[423285169,1780026646000,-1172.97139128,0.000235,2]
[423285171,1780026646000,-2718.34488606,0.00023562,30]
[423285170,1780026646000,-10488.45,0.00023561,2]
[423285174,1780026646000,-2718.34488606,0.00023644,30]
[423285178,1780026646000,-703.55,0.00023868,2]
[423285166,1780026646000,-500.0,0.00023387,2]
[423285192,1780026646000,-1712.93078311,0.00023877,2]
[423285194,1780026646000,-200.0,0.00023877,2]
[423285173,1780026646000,-200.0,0.00023594,2]
[423285193,1780026646000,-2494.55939288,0.00023877,2]
[423285187,1780026646000,-891.61887448,0.00023877,2]
[423285190,1780026646000,-151.0,0.00023877,2]
[423285191,1780026646000,-200.0,0.00023877,2]
[423285183,1780026646000,-747.80937859,0.00023876,2]
[423285182,1780026646000,-599.60298507,0.00023876,2]
[423285181,1780026646000,-302.96099822,0.00023875,2]
[423285184,1780026646000,-209.40437684,0.00023877,2]
[423285180,1780026646000,-500.0,0.00023874,2]
[423285172,1780026646000,-152.0,0.00023566,9]
[423285185,1780026646000,-335.66323249,0.00023877,2]
[423285269,1780026647000,-212.00985753,0.00024657,2]
[423285280,1780026647000,-500.0,0.00024658,7]
[423285277,1780026647000,-959.03,0.00024658,2]
[423285271,1780026647000,-161.15176826,0.00024657,2]
[423285263,1780026647000,-155.60739752,0.00024588,2]
[423285266,1780026647000,-150.0,0.00024589,2]
[423285262,1780026647000,-197201.42881298,0.00024497,2]
[423285275,1780026647000,-1000.0,0.00024658,2]
[423285267,1780026647000,-150.0,0.00024589,2]
[423285265,1780026647000,-150.0,0.00024589,2]
[423285264,1780026647000,-150.0,0.00024589,2]
[423285279,1780026647000,-150.0,0.00024658,2]
[423285274,1780026647000,-1115.48,0.00024658,6]
[423285282,1780026647000,-224.45441343,0.00024658,2]
[423285298,1780026647000,-899.662535,0.000248,2]
[423285281,1780026647000,-2657.95098133,0.00024658,2]
[423285287,1780026647000,-500.0,0.00024799,2]
[423285293,1780026647000,-617.382173,0.000248,2]
[423285284,1780026647000,-152.0,0.00024719,11]
[423285285,1780026647000,-500.0,0.00024799,2]
[423285292,1780026647000,-617.382173,0.000248,2]
[423285286,1780026647000,-500.0,0.00024799,2]
[423285290,1780026647000,-617.382173,0.000248,2]
[423285289,1780026647000,-240713.0,0.000248,7]
[423285291,1780026647000,-617.382173,0.000248,2]
[423285288,1780026647000,-407.2036908,0.00024799,2]
[423285296,1780026647000,-372.127038,0.000248,2]
[423285294,1780026647000,-372.127038,0.000248,2]
[423285258,1780026647000,-2586.85809042,0.00024425,2]
[423285283,1780026647000,-197.30787002,0.00024658,2]
[423285257,1780026647000,-288.71285617,0.00024425,2]
[423285234,1780026647000,-280.0,0.00024143,2]
[423285254,1780026647000,-151.0,0.00024425,2]
[423285233,1780026647000,-152.0,0.00024142,10]
[423285297,1780026647000,-372.127038,0.000248,2]
[423285235,1780026647000,-150.0,0.00024143,2]
[423285229,1780026647000,-1722.98,0.0002411,2]
[423285232,1780026647000,-1817.76,0.00024137,5]
[423285230,1780026647000,-703.55,0.0002411,2]
[423285231,1780026647000,-1206.08,0.0002411,2]
[423285228,1780026647000,-247.61,0.0002411,2]
[423285238,1780026647000,-2000.0,0.000242,2]
[423285242,1780026647000,-3549.0,0.00024384,2]
[423285243,1780026647000,-928.0,0.00024384,2]
[423285241,1780026647000,-181.23044552,0.00024324,2]
[423285240,1780026647000,-8056.7,0.00024324,2]
[423285244,1780026647000,-1272.0,0.00024384,2]
[423285256,1780026647000,-1776.30922209,0.00024425,2]
[423285236,1780026647000,-219.0,0.00024143,2]
[423285237,1780026647000,-965.12,0.00024191,2]
[423285246,1780026647000,-525.0,0.00024384,2]
[423285247,1780026647000,-932.0,0.00024384,2]
[423285245,1780026647000,-1225.0,0.00024384,2]
[423285248,1780026647000,-6066.0,0.00024384,2]
[423285250,1780026647000,-217.15233878,0.00024425,2]
[423285249,1780026647000,-200.0,0.00024386,2]
[423285260,1780026647000,-260.4103811,0.00024425,2]
[423285255,1780026647000,-200.0,0.00024425,2]
[423285251,1780026647000,-924.60877283,0.00024425,2]
[423285261,1780026647000,-500.0,0.00024496,2]
[423285253,1780026647000,-260.4103811,0.00024425,2]
[423285252,1780026647000,-436.88401428,0.00024425,2]
[423285259,1780026647000,-260.4103811,0.00024425,2]
[423285239,1780026647000,-2000.0,0.00024228,7]
[423285295,1780026647000,-372.127038,0.000248,2]
[423285304,1780026647000,-151.0,0.000248,2]
[423285299,1780026647000,-899.662535,0.000248,2]
[423285344,1780026647000,-500.0,0.000248,2]
[423285345,1780026647000,-500.0,0.000248,2]
[423285337,1780026647000,-210.674048,0.000248,2]
[423285339,1780026647000,-4101.394339,0.000248,2]
[423285341,1780026647000,-4101.394339,0.000248,2]
[423285342,1780026647000,-500.0,0.000248,2]
[423285346,1780026647000,-500.0,0.000248,2]
[423285336,1780026647000,-210.674048,0.000248,2]
[423285343,1780026647000,-500.0,0.000248,2]
[423285340,1780026647000,-4101.394339,0.000248,2]
[423285338,1780026647000,-4101.394339,0.000248,2]
[423285348,1780026647000,-500.0,0.000248,2]
[423285359,1780026647000,-301.087025,0.000248,2]
[423285358,1780026647000,-301.087025,0.000248,2]
[423285360,1780026647000,-151.0,0.000248,2]
[423285350,1780026647000,-500.0,0.000248,2]
[423285347,1780026647000,-500.0,0.000248,2]
[423285354,1780026647000,-500.0,0.000248,2]
[423285349,1780026647000,-500.0,0.000248,2]
[423285357,1780026647000,-301.087025,0.000248,2]
[423285351,1780026647000,-500.0,0.000248,2]
[423285353,1780026647000,-500.0,0.000248,2]
[423285300,1780026647000,-899.662535,0.000248,2]
[423285355,1780026647000,-338.564043,0.000248,2]
[423285356,1780026647000,-301.087025,0.000248,2]
[423285363,1780026647000,-163.35006071,0.00024873,2]
[423285362,1780026647000,-500.0,0.00024811,2]
[423285361,1780026647000,-151.0,0.000248,2]
[423285364,1780026647000,-2000.0,0.000249,2]
[423285334,1780026647000,-210.674048,0.000248,2]
[423285335,1780026647000,-210.674048,0.000248,2]
[423285352,1780026647000,-500.0,0.000248,2]
[423285330,1780026647000,-1775.187622,0.000248,2]
[423285333,1780026647000,-1775.187622,0.000248,2]
[423285302,1780026647000,-151.0,0.000248,2]
[423285301,1780026647000,-899.662535,0.000248,2]
[423285306,1780026647000,-272.807055,0.000248,2]
[423285303,1780026647000,-151.0,0.000248,2]
[423285307,1780026647000,-151.0,0.000248,2]
[423285311,1780026647000,-193.34322,0.000248,2]
[423285309,1780026647000,-151.0,0.000248,2]
[423285310,1780026647000,-151.0,0.000248,2]
[423285308,1780026647000,-151.0,0.000248,2]
[423285316,1780026647000,-667.030463,0.000248,2]
[423285317,1780026647000,-667.030463,0.000248,2]
[423285318,1780026647000,-667.030463,0.000248,2]
[423285319,1780026647000,-674.088751,0.000248,2]
[423285312,1780026647000,-193.34322,0.000248,2]
[423285305,1780026647000,-151.0,0.000248,2]
[423285313,1780026647000,-193.34322,0.000248,2]
[423285314,1780026647000,-193.34322,0.000248,2]
[423285328,1780026647000,-151.0,0.000248,2]
[423285326,1780026647000,-1906.742747,0.000248,2]
[423285329,1780026647000,-151.0,0.000248,2]
[423285325,1780026647000,-1906.742747,0.000248,2]
[423285324,1780026647000,-1906.742747,0.000248,2]
[423285327,1780026647000,-151.0,0.000248,2]
[423285322,1780026647000,-674.088751,0.000248,2]
[423285323,1780026647000,-1906.742747,0.000248,2]
[423285332,1780026647000,-1775.187622,0.000248,2]
[423285331,1780026647000,-1775.187622,0.000248,2]
[423285321,1780026647000,-674.088751,0.000248,2]
[423285320,1780026647000,-674.088751,0.000248,2]
[423285315,1780026647000,-667.030463,0.000248,2]
[423285400,1780026648000,-3982.59695883,0.00025,2]
[423285399,1780026648000,-313.60822115,0.00025,2]
[423285398,1780026648000,-1647.47271075,0.00025,30]
[423285397,1780026648000,-400.63324285,0.00025,60]
[423285395,1780026648000,-1138.10530309,0.00025,60]
[423285394,1780026648000,-410.5420813,0.00025,2]
[423285405,1780026648000,-1387.43033441,0.00025,2]
[423285392,1780026648000,-209.09056759,0.00025,7]
[423285393,1780026648000,-1000.0,0.00025,2]
[423285396,1780026648000,-2630.29506883,0.00025,30]
[423285403,1780026648000,-1147.04311938,0.00025,2]
[423285409,1780026648000,-727.90733716,0.00025,2]
[423285401,1780026648000,-3628.50753147,0.00025,2]
[423285402,1780026648000,-1203.36656156,0.00025,2]
[423285406,1780026648000,-1234.26087713,0.00025,2]
[423285408,1780026648000,-2729.1280114,0.00025,2]
[423285411,1780026648000,-1571.96874582,0.00025,2]
[423285410,1780026648000,-2000.0,0.00025,2]
[423285412,1780026648000,-2007.09335718,0.00025,2]
[423285417,1780026648000,-392.02,0.00025,2]
[423285407,1780026648000,-5647.27619614,0.00025,2]
[423285391,1780026648000,-209.09056759,0.00025,30]
[423285404,1780026648000,-3749.70686209,0.00025,2]
[423285389,1780026648000,-270.0455652,0.00024973,2]
[423285383,1780026648000,-170.73266429,0.00024973,2]
[423285387,1780026648000,-2682.57183977,0.00024973,2]
[423285413,1780026648000,-392.02,0.00025,2]
[423285370,1780026648000,-500.0,0.00024937,4]
[423285369,1780026648000,-500.0,0.00024937,4]
[423285373,1780026648000,-500.0,0.00024937,4]
[423285368,1780026648000,-500.0,0.00024937,4]
[423285367,1780026648000,-500.0,0.00024937,4]
[423285366,1780026648000,-1004.67,0.00024927,7]
[423285372,1780026648000,-500.0,0.00024937,4]
[423285365,1780026648000,-832.37,0.00024905,15]
[423285371,1780026648000,-500.0,0.00024937,4]
[423285386,1780026648000,-1842.0326633,0.00024973,2]
[423285385,1780026648000,-200.0,0.00024973,2]
[423285384,1780026648000,-267.96428932,0.00024973,2]
[423285382,1780026648000,-958.81929743,0.00024973,2]
[423285374,1780026648000,-500.0,0.00024937,4]
[423285380,1780026648000,-1109.07173699,0.0002497,2]
[423285375,1780026648000,-500.0,0.00024937,4]
[423285376,1780026648000,-491.02,0.00024937,4]
[423285381,1780026648000,-225.18697532,0.00024973,2]
[423285377,1780026648000,-253.06,0.00024959,2]
[423285378,1780026648000,-150.0,0.00024959,2]
[423285379,1780026648000,-151.97,0.00024959,2]
[423285388,1780026648000,-270.0455652,0.00024973,2]
[423285390,1780026648000,-3000.0,0.00024987,7]
[423285415,1780026648000,-392.02,0.00025,2]
[423285443,1780026648000,-200.0,0.00025521,2]
[423285418,1780026648000,-392.02,0.00025,2]
[423285452,1780026648000,-200.0,0.000257,2]
[423285449,1780026648000,-500.0,0.00025555,2]
[423285445,1780026648000,-2781.82699784,0.00025521,2]
[423285451,1780026648000,-711.47953175,0.0002565,2]
[423285448,1780026648000,-209.51601223,0.00025523,2]
[423285447,1780026648000,-425.55863061,0.00025521,2]
[423285450,1780026648000,-948.0,0.00025637,2]
[423285444,1780026648000,-1910.18787185,0.00025521,2]
[423285446,1780026648000,-153.27316643,0.00025521,2]
[423285457,1780026648000,-1144.75654299,0.00025818,5]
[423285442,1780026648000,-719.89917803,0.00025521,2]
[423285456,1780026648000,-1094.84141647,0.00025818,5]
[423285455,1780026648000,-1101.65833568,0.00025818,5]
[423285458,1780026648000,-1137.46129002,0.00025818,5]
[423285459,1780026648000,-1080.43713534,0.00025818,5]
[423285462,1780026648000,-152.0,0.00025872,13]
[423285461,1780026648000,-1022.63960529,0.00025818,5]
[423285464,1780026648000,-200.0,0.0002597,2]
[423285463,1780026648000,-200.0,0.000259,9]
[423285465,1780026648000,-550.0,0.00026,2]
[423285466,1780026648000,-500.0,0.00026,2]
[423285416,1780026648000,-392.02,0.00025,2]
[423285460,1780026648000,-1110.59575412,0.00025818,5]
[423285453,1780026648000,-209.09056759,0.000258,7]